{"text_format":"1","workbook":"xlsx","n_sheets":9,"sheets":["Instructions","Summary of Design Requirements","Sample","    SPI    ","Supplier Photos-Sketches","Specific Regional Requirements","Ref - StdCtnr NA","Ref - StdCtnr Metric","support"],"not_rendered":{"charts":0,"images":12,"macros":1,"external_links":1,"defined_names":103,"comments":3,"pivot_tables":0},"unopened":[],"bounds":{"document_bytes":16777216,"sheet_cells":100000,"rows_first":2000,"rows_last":500,"rows_between":2000,"halvings":0,"cell_chars":16384,"cell_head_chars":4096},"cells_cut":0,"cells_raw":0,"read":"whole","date_system":"1900"}

{"sheet":"Instructions","index":0,"n_rows":9,"n_cols":7,"rows_kept":9,"cut":false,"hidden":false,"merged":[[3,4,3,9],[2,6,2,9]]}
[]
[]
[null,null,null,null,null,null,"Click here to go to SPI Form"]
[]
["Date:"]
[]
["To:  Supplier"]
[]
["Subject: Supplier Packaging Information for Quotations"]

{"sheet":"Summary of Design Requirements","index":1,"n_rows":78,"n_cols":3,"rows_kept":78,"cut":false,"hidden":false,"merged":[[22,0,22,14],[3,0,6,14],[8,0,12,14],[26,0,26,14],[28,0,28,14],[13,1,13,10],[33,0,33,14],[57,0,57,14],[37,1,37,14],[53,1,53,14],[52,1,52,14],[45,0,45,14]]}
["DESIGN REQUIREMENTS"]
[]
[]
["The intent of Nexteer’s Packaging and Shipping Requirements is to ensure safe movement, part quality, freight cube optimization, lean implementation and control of total costs. The responsibility for ensuring quality of material shipped remains with the supplier throughout the material movement process to Nexteer's point of use.  Compliance to all local regulations is required."]
[]
[]
[]
[]
["The following is a condensed summary of the basic requirements that a supplier must adhere to in both the development of a packaging plan and the application of the shipping requirements.  Upgraded standards may be required for your specific applications. Additionally, these requirements may be modified by supplemental requirements of the receiving Nexteer facility. The use of these standards or approvals of the Nexteer Supplier Packaging Information (SPI) form does not relieve the supplier of responsibility for part quality. These requirements should be applied to all production parts prior to quote submission.  This summary is designed to aid the supplier with packaging design only, and does not release the supplier from reading, understanding, and adhering to the complete \"Nexteer Global Packaging and Shipping Manual\", which can be found at:"]
[]
[]
[]
[]
[null,"http://www.nexteer.com/wp-content/uploads/2016/03/Nexteer_Global_Packaging-Shipping_Manual_-rev-3-21-16-1.pdf"]
["Then, select \"Supplier Standards\"."]
[]
["Packaging Systems:"]
["• Expendable packaging is considered mainstream. Type = RSC."]
["• The primary container must be designed for a minimum ECT = 44."]
["• Maximum load heights (containers plus pallet) must not exceed 48 in (1220 mm)."]
["• The stacked load must have the strength to stack three high (when full) in storage or to a height of 10.5 feet (3.2 m), whichever is greater."]
["• Load must have sufficient strength to stack to a height of 104 in. (2640mm) in transit.  Suitable non-stapled corner supports and top stacking frames may be necessary to meet this requirement."]
["• Nexteer’s modular packaging system will facilitate the maximum utilization of the cubic shipping footprint, in-plant storage and point-of-use presentation. This system is based on two sizes; a 48” x 45” x 48” cube and 1200mm x 800mm x 1100mm cube. It has individual container sizes and is designed for safe manual handling, limiting individual loaded container weights based on container sizes and weight triggers."]
["• Maximum weight of any load (containers plus pallet) is 2000 pounds (907.18 kg)."]
["• Reference container menus are provided on pages 31-33 of the Nexteer Packaging & Shipping Requirements manual."]
["• Package design and standard pack quantity (pieces per container) shall not vary except when approved by Nexteer."]
["• Suppliers are responsible for designing their own expendable packaging. This includes the expendable packaging for the primary container, expendable dunnage used within expendable and returnable containers, and expendable back-up packaging for returnable container systems."]
["• Suppliers may receive assistance from the packaging suppliers and/or from Nexteer. This does not relieve them of their responsibility to provide a quality part."]
["• When a returnable container system is required by Nexteer, suppliers are responsible to provide a design that meets all Nexteer requirements, while ensuring part integrity during shipment."]
["• If there are specialized design requirements, Nexteer may choose to assume responsibility for the packaging design."]
[]
[]
["Attachment D – Supplier Packaging Selection Checklist"]
["To assure Nexteer’s packaging requirements are followed, refer to this pack selection checklist for guidance. Note: Failure to meet Nexteer’s requirements is a breach of supplier responsibility. Nexteer Packaging Management must approve all exceptions."]
[]
[null,"1. Nexteer Global Packaging and Shipping Manual available and understood."]
[null,"2. Shipping containers selected from Standard Container Menu and Standard Pallet Menu."]
[null,"3. Selected shipping container of sufficient strength to contain products through entire material movement cycle (ex: storage, transportation & material handling)."]
[null,"4. Knowledge of final destination of product sold to Nexteer and assures compliance with all government regulations."]
[null,"5. All pertinent supplier employees trained regarding Nexteer’s shipping and packaging requirements."]
[null,"6. Container supplier selected who understands and complies with Nexteer’s packaging requirements."]
[null,"7. Have a SPI form submitted and maintain a copy for each part number supplied to Nexteer."]
[]
[]
["Attachment E – Supplier Ship Compliance Checklist"]
["To assure Nexteer’s packaging requirements are followed, please follow this ship compliance checklist for guidance. Note: Failure to meet Nexteer’s requirements is a breach of supplier responsibility."]
["Nexteer Packaging Management must approve all exceptions."]
[null,"1. Approved SPI for each container and pallet are used for shipment."]
[null,"2. Containers are palletized, aligned (not brick stacked), do not overhang the pallet, and are supported by the deck boards."]
[null,"3. All container designs must be stackable."]
[null,"4. All labels are applied per labeling requirements and mixed load labels are used as necessary. DO NOT STACK labels are NOT to be used."]
[null,"5. All pallets are cubed and have leveled layers (no pyramids or voids)."]
[null,"6. Containers are secured to the pallet with approved stretch film (min 3 wraps) or approved plastic strapping (min 2 length, 2 width) and no metal is used."]
[null,"7. All shipping documents are attached to the load in a document pouch: commercial invoice, packing slip, wood certification (as required) or given to Route Manager in the case of truck loads or milk runs."]
[]
[]
["Attachment F – Packaging Receiving Checklist"]
["To assure incoming shipments adhere to Nexteer’s shipping rules; this checklist should be used as a random audit by the 1st Nexteer controlled location (cross dock or plant dock) that handles it.  Compliance failures will be communicated to the supplier and immediate corrective action will be required at the supplier’s expense."]
[null,"1. Uniform layers – Must be stackable -- no pyramid loads; maximum height of 52”."]
[null,"2. Product packaging must not overhang the pallet."]
[null,"3. All products (cartons, reels, drums, etc.) must be securely attached to pallet."]
[null,"4. Each package or pallet-load needs to have an affixed label consisting of:"]
[null,null,"a. Part Number"]
[null,null,"b. Part description"]
[null,null,"c. Quantity"]
[null,null,"d. Shipper name"]
[null,null,"e. Country of origin"]
[null,null,"f. Shipment date"]
[null,null,"g. Purchase order number"]
[null,null,"h. Consignee name"]
[null,null,"i. No. of cartons per pallet/skid"]
[null,"5. Documentation Requirements - Each Shipment (commercial invoice) needs the following:"]
[null,null,"a. Packing List"]
[null,null,"b. Invoice – should state the country of origin & Ultimate destination"]
[null,null,"c. Wood Certification document. should be issued as follows:"]
[null,null,"1. Corrugated, Plastic, or mfg wood : No-Wood Document"]
[null,null,"2. Softwood / Hardwood :Coniferous / Non-coniferous Document"]
[null,null,"d. Documents must be ATTACHED to the outside of the packaging"]

{"sheet":"Sample","index":2,"n_rows":163,"n_cols":19,"rows_kept":163,"cut":false,"hidden":false,"merged":[[7,1,7,4],[7,5,7,10],[7,11,7,16],[8,1,8,4],[8,5,8,10],[8,11,8,16],[1,1,1,16],[5,0,24,0],[5,1,5,4],[5,5,5,8],[5,9,5,13],[5,14,5,16],[6,1,6,4],[6,5,6,8],[6,9,6,13],[6,14,6,16],[12,1,16,16],[17,1,18,1],[17,6,17,7],[17,9,17,10],[17,13,17,16],[19,1,19,4],[9,1,9,4],[9,5,9,9],[9,10,9,16],[10,5,10,9],[10,10,10,16],[11,1,11,16],[20,1,24,16],[26,0,79,0],[26,8,26,12],[26,15,26,16],[27,1,27,5],[27,6,27,9],[27,10,27,13],[27,14,27,16],[28,1,28,5],[28,6,28,9],[31,1,31,7],[31,8,31,13],[31,14,31,16],[32,1,32,7],[32,8,32,13],[32,14,32,16],[28,10,28,13],[28,14,28,16],[29,1,29,7],[29,8,29,16],[30,1,30,7],[30,8,30,16],[37,12,37,14],[38,1,38,3],[38,4,38,6],[38,7,38,9],[38,10,38,13],[38,14,38,16],[33,1,33,7],[33,8,33,13],[33,14,33,16],[34,1,34,7],[34,8,34,13],[34,14,34,16],[39,1,39,3],[39,4,39,6],[39,7,39,9],[39,10,39,13],[39,14,39,16],[40,1,40,3],[40,4,40,6],[40,7,40,9],[40,10,40,13],[40,14,40,16],[41,1,41,3],[41,4,41,6],[41,7,41,9],[41,10,41,13],[41,14,41,16],[42,1,42,3],[42,4,42,6],[42,7,42,9],[42,10,42,13],[42,14,42,16],[43,1,43,3],[43,4,43,6],[43,7,43,9],[43,10,43,13],[43,14,43,16],[44,1,44,3],[44,4,44,6],[44,7,44,9],[44,10,44,13],[44,14,44,16],[47,1,47,3],[47,4,47,9],[47,10,47,16],[48,1,48,4],[48,5,48,9],[48,10,48,16],[45,1,45,3],[45,4,45,6],[45,7,45,9],[45,10,45,13],[45,14,45,16],[46,1,46,3],[46,4,46,9],[46,10,46,16],[51,1,52,3],[51,4,52,6],[51,7,52,10],[51,11,51,15],[52,11,52,15],[54,12,54,14],[49,1,49,4],[49,5,49,9],[49,10,49,16],[50,1,50,3],[50,4,50,6],[50,7,50,10],[50,11,50,15],[55,1,55,3],[55,4,55,6],[55,7,55,9],[55,10,55,13],[55,14,55,16],[56,1,56,3],[56,4,56,6],[56,7,56,9],[56,10,56,13],[56,14,56,16],[57,1,57,3],[57,4,57,6],[57,7,57,9],[57,10,57,13],[57,14,57,16],[58,1,58,3],[58,4,58,6],[58,7,58,9],[58,10,58,13],[58,14,58,16],[59,1,59,3],[59,4,59,6],[59,7,59,9],[59,10,59,13],[59,14,59,16],[60,1,60,3],[60,4,60,6],[60,7,60,9],[60,10,60,13],[60,14,60,16],[61,1,61,3],[61,4,61,6],[61,7,61,9],[61,10,61,13],[61,14,61,16],[62,1,62,3],[62,4,62,6],[62,7,62,9],[62,10,62,13],[62,14,62,16],[65,1,65,4],[65,5,65,9],[65,10,65,16],[66,1,66,4],[66,5,66,9],[66,10,66,16],[63,1,63,3],[63,4,63,9],[63,10,63,16],[64,1,64,3],[64,4,64,9],[64,10,64,16],[72,1,72,4],[72,5,72,10],[72,11,72,16],[73,1,73,4],[73,5,73,10],[73,11,73,16],[67,1,67,3],[67,4,67,6],[67,7,67,10],[67,11,67,15],[68,1,69,3],[68,4,69,6],[68,7,69,10],[68,11,68,15],[69,11,69,15],[73,18,73,19],[76,1,79,16],[81,0,90,0],[82,6,82,7],[82,9,82,10],[82,12,82,14],[83,9,83,10],[83,12,83,14],[87,1,90,16]]}
[null,null,null,null,"Link below is to Nexteer Global Packaging and Shipping Manual:"]
[null,"http://www.nexteer.com/wp-content/uploads/2012/FILES/PACK_SHIP/packaging_%20manual.pdf"]
[null,null,null,null,null,null,null,"SUPPLIER PACKAGING INFORMATION"]
[null,"* Supplier is responsible for a dunnage design that insures 100% quality upon delivery to Nexteer's point of use."]
[null,"NEXTEER PROVIDED INFORMATION:"]
["Section 1 (Completed by Nexteer)","NEXTEER BUYER",null,null,null,"BUYER PHONE NUMBER",null,null,null,"E-MAIL / FAX",null,null,null,null,"DATE SUBMITTED"]
[null,"Doe, Jane",null,null,null,"989-757-1234",null,null,null,"jane.doe@nexteercom",null,null,null,null,"2017-01-01"]
[null,"Part Number (s)",null,null,null,"Part Description",null,null,null,null,null,"Annual Volume"]
[null,12345678,null,null,null,"widget",null,null,null,null,null,200000]
[null,"Pack Option",null,null,null,"Nexteer Using Plant (s)",null,null,null,null,"Program / Model Year"]
[null,null,null,null,null,"Plt 1",null,null,null,null,"F2XC / 2020"]
[null," SPECIAL PACKAGING REQUIREMENTS & CONSTRAINTS (Also, see \"Additional Comments\" below)"]
[]
[]
[]
[]
[]
[null,"Nexteer contact",456789,null,"Bill Truman",null,"2107-01-01",null,null,"989-757-0000",null,null,null,"b.truman@nexteer.com"]
[null,null,"Advanced PC&L logon",null,"Name",null,"Date",null,null,"Phone",null,null,null,"Email"]
[null,"ADDITIONAL COMMENTS"]
[]
[]
[]
[]
[]
[]
["Section 2 (Completed by Supplier)","SUPPLIER PROVIDED INFORMATION:"]
[null," SUPPLIER COMPANY NAME",null,null,null,null,null,null,null,null,null,null,null,null,"DATE SUBMITTED"]
[null,"ABC Company",null,null,null,null,null,null,null,null,null,null,null,null,"2017-01-03"]
[null," SHIPPING ADDRESS (STREET; CITY, STATE ZIP)",null,null,null,null,null,null,"MANUFACTURING ADDRESS (STREET; CITY, STATE ZIP)"]
[null,"123 Main St; Watchout, NE 12345",null,null,null,null,null,null,"125 Main St; Watchout, NE  12345"]
[null," SUPPLIER SCHEDULING CONTACT NAME",null,null,null,null,null,null,"EMAIL",null,null,null,null,null,"PHONE"]
[null,"Smith, Jane",null,null,null,null,null,null,"jsmith@abcco.com",null,null,null,null,null,"205-365-7823"]
[null," SUPPLIER PACKAGING CONTACT NAME",null,null,null,null,null,null,"EMAIL",null,null,null,null,null,"PHONE"]
[null,"Jones, John",null,null,null,null,null,null,"jjones@abcco.com",null,null,null,null,null,"205-365-7835"]
[]
[]
[null,"RETURNABLE PACK INFORMATION"]
[null," Primary Container Type (Box, Tote, etc)",null,null,"DESCRIPTION / Item #",null,null,"LWH (mm)",null,null,"TARE WT (kg)",null,null,null,"MATERIAL"]
[null,"Manually Handled",null,null,"ESD Tote",null,null,"400 x 300 x 300",null,null,2,null,null,null,"Polyethylene"]
[null," DUNNAGE TYPE (VCI, partitions, etc)",null,null,"DESCRIPTION / Item #",null,null,"LWH (mm)",null,null,"TARE WT (kg)",null,null,null,"MATERIAL"]
[null,"Tray",null,null,"ESD Tray",null,null,"350 x 250 x 75",null,null,0.5,null,null,null,"Polypropylene"]
[null," DUNNAGE TYPE (VCI, partitions, etc)",null,null,"DESCRIPTION / Item #",null,null,"LWH (mm)",null,null,"TARE WT (kg)",null,null,null,"MATERIAL"]
[null,"Other",null,null,"ESD Lid",null,null,"400 x 300 x 25",null,null,0.5,null,null,null,"Polyethylene"]
[null,"Secondary Con type(pallet,pallet-box,etc)",null,null,"DESCRIPTION / Item #",null,null,"LWH (mm)",null,null,"TARE WT (kg)",null,null,null,"MATERIAL"]
[null,"Pallet/Cover Combination",null,null,"Plastic pallet with corresponding lid (weight is sum)",null,null,"1200 x 1000 x 150",null,null,35,null,null,null,"Polyethylene"]
[null,"PALLET STACKABILITY (2-high, 3 high, etc)\n* 1-high or \"Do Not Stack\" unacceptable",null,null,"RUSTPROOFING METHOD (VCI PAPER, VCI BAG, DESICCANT BAGS, OIL, NONE, ETC)",null,null,null,null,null,"PRIMARY BOX HAVE HANDLES (Y or N)"]
[null,3,null,null,"VCI bag lining the inside of tote",null,null,null,null,null,"Y"]
[null," STANDARD PACK QUANTITY (per primary container)",null,null,null,"NO. OF PRIMARY CONTAINERS/LAYER",null,null,null,null,"NO. OF LAYERS ON/IN SECONDARY CONTAINER"]
[null,50,null,null,null,9,null,null,null,null,3]
[null," PART WEIGHT (kg)",null,null,"PRIMARY CONT GROSS WEIGHT (kg)",null,null,"SECONDARY CONT GROSS WEIGHT (kg)",null,null,null,"METHOD TO SECURE LOAD",null,null,null,null,"MATERIAL"]
[null,0.1,null,null,{"$f":"B50*B52+K40+K42+K44","v":8},null,null,{"$f":"E52*F50*K50+K46","v":251},null,null,null,"(stretch wrap, banding, etc)"]
[null,null,null,null,null,null,null,null,null,null,null,"Seat Belts"]
[]
[null,"EXPENDABLE PACK INFORMATION"]
[null," Primary Container Type (box, tote, etc)",null,null,"DESCRIPTION / Item #",null,null,"LWH (mm)",null,null,"TARE WT (kg)",null,null,null,"MATERIAL"]
[null,null,null,null,"ESD Box",null,null,"400 x 300 x 300",null,null,0.4]
[null," DUNNAGE TYPE (VCI, partitions, etc)",null,null,"DESCRIPTION / Item #",null,null,"LWH (mm)",null,null,"TARE WT (kg)",null,null,null,"MATERIAL"]
[null,null,null,null,"ESD cardboard partitions",null,null,"380 x 280 x 280",null,null,0.3]
[null," DUNNAGE TYPE (VCI, partitions, etc)",null,null,"DESCRIPTION / Item #",null,null,"LWH (mm)",null,null,"TARE WT (kg)",null,null,null,"MATERIAL"]
[]
[null," Secondary Con type(pallet,pallet-box,etc)",null,null,"DESCRIPTION / Item #",null,null,"LWH (mm)",null,null,"TARE WT (kg)",null,null,null,"MATERIAL"]
[null,null,null,null,"Heat treat pallet",null,null,"1200 x 1000 x 135",null,null,16]
[null,"PALLET STACKABILITY (2-high, 3 high, etc)\n* 1-high or \"Do Not Stack\" not acceptable",null,null,"RUSTPROOFING METHOD (VCI PAPER, VCI BAG, DESICCANT BAGS, OIL, NONE, ETC)",null,null,null,null,null,"PRIMARY BOX HAVE HANDLES (Y or N)"]
[null,3,null,null,"VCI bag lining the inside of box",null,null,null,null,null,"y"]
[null," STANDARD PACK QUANTITY (per primary container)",null,null,null,"NO. OF PRIMARY CONTAINERS/LAYER",null,null,null,null,"NO. OF LAYERS ON/IN SECONDARY CONTAINER"]
[null,50,null,null,null,9,null,null,null,null,3]
[null," PART WEIGHT (kg)",null,null,"PRIMARY CONT GROSS WEIGHT (kg)",null,null,"SECONDARY CONT GROSS WEIGHT (kg)",null,null,null,"METHOD TO SECURE LOAD",null,null,null,null,"MATERIAL"]
[null,0.1,null,null,{"$f":"B67*B69+K57+K59+K61","v":5.7},null,null,{"$f":"E69*F67*K67+K63","v":169.9},null,null,null,"(stretch wrap, banding, etc)"]
[null,null,null,null,null,null,null,null,null,null,null,"stretch wrap"]
[]
[null,"INSERT PHOTOS HERE"]
[null,"Part Only",null,null,null,"Part + Interior Dunnage + Primary Box",null,null,null,null,null,"Primary + Secondary Unit Load"]
[null,null,null,null,null,null,null,null,null,null,null,null,null,null,null,null,null,null,"Photos distorted intentionally for confidentiality and do NOT represent the rest of the packaging specs above.  Photos are only for concept illustration."]
[]
[null,"SUPPLIER FEEDBACK"]
[null,"Additional back-up expendable illustrations are included on \"Supplier Photos-Sketches\" tab."]
[]
[]
[]
[]
["Section 3 (Completed by Nexteer)","NEXTEER APPROVALS"]
[null,"Concept Agreement",123456,null,"Jack Smith",null,"2017-01-05",null,null,234567,null,null,"Jill Johnson",null,null,null,"2017-01-06"]
[null,null,"Plant PC&L",null,"Name",null,"Date",null,null,"Plant I.E.",null,null,"Name",null,null,null,"Date"]
[]
[]
[null,"NEXTEER FEEDBACK"]
[null,"Returnable loop size still to be determined."]
[]
[]
[]
[]
[]
[]
[]
[]
[]
[]
[]
[]
[]
[]
[]
[]
[]
[]
[]
[]
[]
[]
[]
[]
[]
[]
[]
[]
[]
[]
[]
[null,null,null,null,"",null,null,null,null,null,""]
[]
[]
[]
[]
[]
[]
[]
[]
[null,null,null,null,"",null,""]
[]
[]
[]
[]
[]
[]
[]
[]
[null,null,null,null,"",null,"",null,"",null,""]
[]
[]
[]
[]
[]
[]
[null,null,null,null,"",null,"",null,"",null,"",null,null,"",null,null,""]
[]
[]
[]
[]
[]
[]
[]
[]
[]
[]
[]
[]
[]
[]
[]
[]
[]
[null,null,null,null,"",null,""]

{"sheet":"    SPI    ","index":3,"n_rows":163,"n_cols":23,"rows_kept":163,"cut":false,"hidden":false,"merged":[[59,1,59,3],[60,1,60,3],[29,8,29,16],[32,14,32,16],[31,14,31,16],[29,1,29,7],[58,1,58,3],[43,1,43,3],[48,10,48,16],[58,7,58,9],[34,1,34,7],[55,10,55,13],[56,4,56,6],[56,7,56,9],[54,12,54,14],[56,1,56,3],[55,4,55,6],[55,7,55,9],[43,4,43,6],[42,1,42,3],[59,7,59,9],[57,4,57,6],[40,7,40,9],[39,10,39,13],[27,10,27,13],[30,8,30,16],[27,6,27,9],[32,1,32,7],[31,1,31,7],[27,1,27,5],[50,1,50,3],[44,1,44,3],[45,1,45,3],[45,4,45,6],[45,7,45,9],[44,4,44,6],[44,7,44,9],[45,10,45,13],[43,7,43,9],[46,10,46,16],[42,7,42,9],[48,5,48,9],[42,10,42,13],[42,4,42,6],[39,1,39,3],[40,1,40,3],[41,1,41,3],[41,14,41,16],[82,9,82,10],[82,12,82,14],[83,12,83,14],[76,1,79,16],[61,1,61,3],[67,11,67,15],[61,7,61,9],[67,7,67,10],[67,1,67,3],[68,1,69,3],[64,4,64,9],[64,1,64,3],[63,1,63,3],[63,4,63,9],[65,5,65,9],[65,1,65,4],[62,1,62,3],[62,14,62,16],[69,11,69,15],[61,14,61,16],[63,10,63,16],[65,10,65,16],[61,10,61,13],[66,10,66,16],[87,1,90,16],[82,6,82,7],[73,1,73,4],[73,5,73,10],[83,9,83,10],[57,1,57,3],[58,10,58,13],[49,1,49,4],[49,5,49,9],[58,4,58,6],[57,7,57,9],[55,1,55,3],[72,1,72,4],[72,5,72,10],[62,4,62,6],[60,4,60,6],[61,4,61,6],[60,7,60,9],[62,10,62,13],[67,4,67,6],[66,5,66,9],[66,1,66,4],[62,7,62,9],[59,4,59,6],[17,6,17,7],[9,5,9,9],[9,10,9,16],[41,10,41,13],[33,14,33,16],[38,14,38,16],[37,12,37,14],[38,4,38,6],[28,6,28,9],[28,10,28,13],[10,5,10,9],[10,10,10,16],[33,8,33,13],[26,8,26,12],[38,10,38,13],[38,7,38,9],[33,1,33,7],[32,8,32,13],[28,1,28,5],[41,4,41,6],[41,7,41,9],[31,8,31,13],[30,1,30,7],[38,1,38,3],[1,1,1,16],[26,15,26,16],[5,14,5,16],[6,14,6,16],[7,1,7,4],[8,1,8,4],[5,1,5,4],[5,5,5,8],[7,11,7,16],[8,11,8,16],[17,1,18,1],[5,9,5,13],[6,1,6,4],[6,5,6,8],[6,9,6,13],[7,5,7,10],[19,1,19,4],[8,5,8,10],[9,1,9,4],[11,1,11,16],[20,1,24,16],[12,1,16,16],[17,13,17,16],[17,9,17,10],[34,14,34,16],[40,10,40,13],[39,4,39,6],[39,7,39,9],[40,14,40,16],[56,10,56,13],[39,14,39,16],[42,14,42,16],[50,4,50,6],[34,8,34,13],[43,10,43,13],[5,0,24,0],[26,0,79,0],[81,0,90,0],[40,4,40,6],[73,11,73,16],[72,11,72,16],[68,7,69,10],[68,4,69,6],[51,4,52,6],[27,14,27,16],[28,14,28,16],[55,14,55,16],[57,14,57,16],[59,14,59,16],[44,14,44,16],[57,10,57,13],[43,14,43,16],[47,10,47,16],[60,10,60,13],[46,1,46,3],[47,1,47,3],[51,1,52,3],[48,1,48,4],[51,11,51,15],[64,10,64,16],[68,11,68,15],[44,10,44,13],[52,11,52,15],[60,14,60,16],[46,4,46,9],[47,4,47,9],[59,10,59,13],[58,14,58,16],[50,7,50,10],[45,14,45,16],[49,10,49,16],[51,7,52,10],[50,11,50,15],[56,14,56,16]]}
[null,null,null,null,"Link below is to Nexteer Global Packaging and Shipping Manual:"]
[null,"http://www.nexteer.com/wp-content/uploads/2016/12/Nexteer_Global_Packaging-Shipping_Manual_-rev-12-09-16.pdf"]
[null,null,null,null,null,null,null,"SUPPLIER PACKAGING INFORMATION"]
["* Supplier is responsible for a dunnage design that insures 100% quality upon delivery to Nexteer's point of use."]
[null,"NEXTEER PROVIDED INFORMATION:",null,null,null,null,null,null,null,null,null,null,null,null,null,null,null,null," "]
["Section 1 (Completed by Nexteer)","NEXTEER BUYER",null,null,null,"BUYER PHONE NUMBER",null,null,null,"E-MAIL / FAX",null,null,null,null,"DATE SUBMITTED"]
[]
[null,"Part Number (s)",null,null,null,"Part Description",null,null,null,null,null,"Annual Volume"]
[]
[null,"Pack Option",null,null,null,"Nexteer Using Plant (s)",null,null,null,null,"Program / Model Year"]
[]
[null," SPECIAL PACKAGING REQUIREMENTS & CONSTRAINTS (Also, see \"Additional Comments\" below)"]
[]
[]
[]
[]
[]
[null,"Nexteer contact","double-click here"]
[null,null,"Advanced PC&L logon",null,"Name",null,"Date",null,null,"Phone",null,null,null,"Email"]
[null,"ADDITIONAL COMMENTS"]
[]
[]
[]
[]
[]
[]
["Section 2 (Completed by Supplier)","SUPPLIER PROVIDED INFORMATION:"]
[null," SUPPLIER COMPANY NAME",null,null,null,null,null,null,null,null,null,null,null,null,"DATE SUBMITTED"]
[]
[null," SHIPPING ADDRESS (STREET; CITY, STATE ZIP)",null,null,null,null,null,null,"MANUFACTURING ADDRESS (STREET; CITY, STATE ZIP)"]
[]
[null," SUPPLIER SCHEDULING CONTACT NAME",null,null,null,null,null,null,"EMAIL",null,null,null,null,null,"PHONE"]
[]
[null," SUPPLIER PACKAGING CONTACT NAME",null,null,null,null,null,null,"EMAIL",null,null,null,null,null,"PHONE"]
[]
[]
[]
[null,"RETURNABLE PACK INFORMATION"]
[null," Primary Container Type (Box, Tote, etc)",null,null,"DESCRIPTION / Item #",null,null,"LWH (mm)",null,null,"TARE WT (kg)",null,null,null,"MATERIAL"]
[null,null,null,null,null,null,null,null,null,null,null,null,null,null,"(n/a)"]
[null," DUNNAGE TYPE (VCI, partitions, etc)",null,null,"DESCRIPTION / Item #",null,null,"LWH (mm)",null,null,"TARE WT (kg)",null,null,null,"MATERIAL"]
[null,null,null,null,null,null,null,null,null,null,null,null,null,null,"(n/a)"]
[null," DUNNAGE TYPE (VCI, partitions, etc)",null,null,"DESCRIPTION / Item #",null,null,"LWH (mm)",null,null,"TARE WT (kg)",null,null,null,"MATERIAL"]
[null,null,null,null,null,null,null,null,null,null,null,null,null,null,"(n/a)"]
[null,"Secondary Con type(pallet,pallet-box,etc)",null,null,"DESCRIPTION / Item #",null,null,"LWH (mm)",null,null,"TARE WT (kg)",null,null,null,"MATERIAL"]
[null,null,null,null,null,null,null,null,null,null,null,null,null,null,"(n/a)"]
[null,"PALLET STACKABILITY (2-high, 3 high, etc)\n* 1-high or \"Do Not Stack\" unacceptable",null,null,"RUSTPROOFING METHOD (VCI PAPER, VCI BAG, DESICCANT BAGS, OIL, NONE, ETC)",null,null,null,null,null,"PRIMARY BOX HAVE HANDLES (Y or N)"]
[]
[null," STANDARD PACK QUANTITY (per primary container)",null,null,null,"NO. OF PRIMARY CONTAINERS/LAYER",null,null,null,null,"NO. OF LAYERS ON/IN SECONDARY CONTAINER"]
[]
[null," PART WEIGHT (kg)",null,null,"PRIMARY CONT GROSS WEIGHT (kg)",null,null,"SECONDARY CONT GROSS WEIGHT (kg)",null,null,null,"METHOD TO SECURE LOAD",null,null,null,null,"MATERIAL"]
[null,null,null,null,{"$f":"B50*B52+K40+K42+K44","v":0},null,null,{"$f":"E52*F50*K50+K46","v":0},null,null,null,"(stretch wrap, banding, etc)"]
[]
[]
[null,"EXPENDABLE PACK INFORMATION"]
[null," Primary Container Type (box, tote, etc)",null,null,"DESCRIPTION / Item #",null,null,"LWH (mm)",null,null,"TARE WT (kg)",null,null,null,"MATERIAL"]
[]
[null," DUNNAGE TYPE (VCI, partitions, etc)",null,null,"DESCRIPTION / Item #",null,null,"LWH (mm)",null,null,"TARE WT (kg)",null,null,null,"MATERIAL"]
[]
[null," DUNNAGE TYPE (VCI, partitions, etc)",null,null,"DESCRIPTION / Item #",null,null,"LWH (mm)",null,null,"TARE WT (kg)",null,null,null,"MATERIAL"]
[]
[null," Secondary Con type(pallet,pallet-box,etc)",null,null,"DESCRIPTION / Item #",null,null,"LWH (mm)",null,null,"TARE WT (kg)",null,null,null,"MATERIAL"]
[]
[null,"PALLET STACKABILITY (2-high, 3 high, etc)\n* 1-high or \"Do Not Stack\" not acceptable",null,null,"RUSTPROOFING METHOD (VCI PAPER, VCI BAG, DESICCANT BAGS, OIL, NONE, ETC)",null,null,null,null,null,"PRIMARY BOX HAVE HANDLES (Y or N)"]
[]
[null," STANDARD PACK QUANTITY (per primary container)",null,null,null,"NO. OF PRIMARY CONTAINERS/LAYER",null,null,null,null,"NO. OF LAYERS ON/IN SECONDARY CONTAINER"]
[]
[null," PART WEIGHT (kg)",null,null,"PRIMARY CONT GROSS WEIGHT (kg)",null,null,"SECONDARY CONT GROSS WEIGHT (kg)",null,null,null,"METHOD TO SECURE LOAD",null,null,null,null,"MATERIAL"]
[null,null,null,null,{"$f":"B67*B69+K57+K59+K61","v":0},null,null,{"$f":"E69*F67*K67+K63","v":0},null,null,null,"(stretch wrap, banding, etc)"]
[]
[]
[null,"INSERT PHOTOS HERE"]
[null,"Part Only",null,null,null,"Part + Interior Dunnage + Primary Box",null,null,null,null,null,"Primary + Secondary Unit Load"]
[]
[]
[null,"SUPPLIER FEEDBACK"]
[]
[]
[]
[]
[]
["Section 3 (Completed by Nexteer)","NEXTEER APPROVALS"]
[null,"Concept Agreement","double-click here",null,null,null,null,null,null,"double-click here"]
[null,null,"Plant PC&L",null,"Name",null,"Date",null,null,"Plant I.E.",null,null,"Name",null,null,null,"Date"]
[]
[]
[null,"NEXTEER FEEDBACK"]
[]
[]
[]
[]
[]
[]
[]
[]
[]
[]
[]
[]
[]
[]
[]
[]
[]
[]
[]
[]
[]
[]
[]
[]
[]
[]
[]
[]
[]
[]
[]
[]
[null,null,null,null,"",null,null,null,null,null,""]
[]
[]
[]
[]
[]
[]
[]
[]
[null,null,null,null,"",null,""]
[]
[]
[]
[]
[]
[]
[]
[]
[null,null,null,null,"",null,"",null,"",null,""]
[]
[]
[]
[]
[]
[]
[null,null,null,null,"",null,"",null,"",null,"",null,null,"",null,null,"",null,"",null,"",null,""]
[]
[]
[]
[]
[]
[]
[]
[]
[]
[]
[]
[]
[]
[]
[]
[]
[]
[null,null,null,null,"",null,""]

{"sheet":"Supplier Photos-Sketches","index":4,"n_rows":1,"n_cols":1,"rows_kept":1,"cut":false,"hidden":false,"merged":[]}
["Please input more Photos or Sketches Below:"]

{"sheet":"Specific Regional Requirements","index":5,"n_rows":30,"n_cols":3,"rows_kept":30,"cut":false,"hidden":false,"merged":[]}
["Region","Plant","Issue"]
["U.S."]
[null,"All Plants"]
[null,null,"In general, hand-held boxes must be < 12 kg."]
[]
[null,"Plt 3"]
[null,null,"1)  In-house pallet storage cells are only 33\" wide, so one side of pallet must be < 32 inches.  This < 32\" side needs fork access."]
[]
["Mexico"]
[null,"All Plants"]
[null,null,"1)  National ergonomic law requires boxes be < 10 kg (parts + packaging)."]
[]
[null,"Queretaro (Plants 65 & 66)"]
[null,null,"1)  Due to storage rack structure, one side of pallet must be > 45 inches, with fork access on the adjacent side."]
[]
["* Note - a pallet that is < 32\" x > 45\" with fork access on the < 32\" side could accommodate Queretaro and Plt 3 (and would be adequate for other plants in the regions)."]
[]
[]
["China"]
[null,"All Plants"]
[null,null,"In general, hand-held boxes must be < 12 kg."]
[]
["Poland"]
[null,"All Plants"]
[null,null,"1)  National ergonomic law requires boxes be < 12 kg (parts + packaging)."]
[null,null,"2)  Due to storage rack structure, gross pallet weight must be < 500 kg (parts + packaging)."]
[]
["Brazil"]
[null,"All Plants"]
[null,null,"1)  Due to storage rack structure, gross pallet weight must be < 500 kg (parts + packaging)."]

{"sheet":"Ref - StdCtnr NA","index":6,"n_rows":30,"n_cols":11,"rows_kept":30,"cut":false,"hidden":false,"merged":[[29,0,30,11],[27,1,27,2],[25,8,25,9],[21,6,21,9],[24,8,24,9],[25,6,25,7],[24,6,24,7],[21,1,21,2],[22,6,22,7],[22,8,22,9],[23,6,23,7],[23,8,23,9],[23,3,23,5],[20,6,20,7],[20,8,20,9],[19,6,19,9],[19,1,19,2],[25,1,25,2]]}
[null,"Nexteer Automotive Container Listing"]
[null,"North American Standards"]
[]
[null,"Manually Handled Containers (Commonly Used Sizes)"]
[null,"IN","MM"]
[null," 9 x 9 x 4"," 229 x 229 x 102"]
[null," 9 x 9 x 6"," 229 x 229 x 153"]
[null," 12 x 7.5 x 4"," 305 x 191 x 102"]
[null," 12 x 15 x 4"," 305 x 381 x 102"]
[null," 12 x 15 x 7.5"," 305 x 381 x 191"]
[null," 24 x 15 x 4"," 610 x 381 x 102"]
[null," 24 x 15 x 7.5"," 610 x 381 x 191"]
[null," 24 x 15 x 11"," 610 x 381 x 280"]
[null," 24 x 15 x 14.5"," 610 x 381 x 369"]
[null," 24 x 22.5 x 7.5"," 610 x 572 x 364"]
[null," 24 x 22.5 x 11"," 610 x 572 x 280"]
[null," 24 x 22.5 x 14.5"," 610 x 572 x 369"]
[]
[]
[null,"Preferred Pallet Sizes",null,null,null,null,"Bulk Containers"]
[null,"IN","MM",null,null,null,"IN",null,"MM"]
[null,"North American Standards",null,null,null,null,"North American Standards"]
[null," 45 x 48"," 1143 x 1219",null,null,null," 32 x 30 x 25",null," 813 x 762 x 635"]
[null,"32 x 45-48","819 x 1143 -1219","Preferred for Plt 3 and meets Mexico requirements",null,null," 32 x 30 x 34",null," 813 x 762 x 864",null,"Requires Side Access"]
[null,null,null,null,null,null," 48 x 45 x 25",null," 1219 x 1143 x 635",null,"Requires Side Access"]
[null,"Acceptable Pallet Sizes",null,null,null,null," 48 x 45 x 34",null," 1219 x 1143 x 864",null,"Requires Side Access"]
[null,"IN","MM"]
[null,"North American Standards"]
[null," 32 x 36"," 813 x 914"]
["* The dimensions shown should be considered outside dimensions for both packaging options (Returnable and Expendable)"]

{"sheet":"Ref - StdCtnr Metric","index":7,"n_rows":30,"n_cols":9,"rows_kept":30,"cut":false,"hidden":false,"merged":[[3,1,3,8],[4,3,4,4],[18,1,18,2],[18,4,18,7],[19,4,19,5],[19,6,19,7],[20,1,20,2],[24,6,24,7],[24,4,24,5],[20,4,20,7],[22,4,22,5],[22,6,22,7],[23,4,23,5],[23,6,23,7],[33,4,33,5],[33,6,33,7],[25,1,25,2],[27,1,27,2],[21,4,21,5],[21,6,21,7]]}
[null,"Nexteer Automotive Standard Container Listing"]
[null,"European and Metric Standards"]
[]
[null,"Manually Handled Containers"]
[null,null,"Expendable Carton MM","Returnable Container MM",null,"Containers per Layer (1200 x 800)","Containers per Layer (1200 x 1000)"]
[null,null,null,"200 x 150 x 140",null,"-","-"]
[null,null,"300 x 200 x 150","297 x 198 x 148","VDA",16,20]
[null,null,"300 x 200 x 150","300 x 200 x 114","Galia",16,20]
[null,null,"300 x 200 x 200","300 x 200 x 214","Galia",16,20]
[null,null,"400 x 300 x 150","396 x 297 x 148","VDA",8,10]
[null,null,"400 x 300 x 150","400 x 300 x 114","Galia",8,10]
[null,null,"400 x 300 x 200","396 x 297 x 280","VDA",8,10]
[null,null,"400 x 300 x 200","400 x 300 x 214","Galia",8,10]
[null,null,"600 x 400 x 200","594 x 396 x 280","VDA",4,5]
[null,null,"600 x 400 x 200","600 x 400 x 214","Galia",4,5]
[null,null,"600 x 400 x 300","600 x 400 x 314","Galia",4,5]
[]
[]
[null,"Preferred Pallet Sizes",null,null,"Bulk Containers"]
[null,"IN","MM",null,"IN",null,"MM"]
[null," Metric Standards",null,null," Metric Standards"]
[null,"47.2 x  31.4","1200 x 800",null,"  31.5 x 23.6 x 18.3",null," 800 x 600 x 465"]
[null," 47.2 x 39.3","1200 x 1000",null,"  47.2 x 39.3 x 33.8 ",null," 1200 x 1000 x 860",null,"Requires Side Access"]
[null,null,null,null,"  47.2 x 39.3 x 38.4",null," 1200 x 1000 x 975",null,"Requires Side Access"]
[]
[null,"Acceptable Pallet Sizes"]
[null,"IN","MM"]
[null," Metric Standards"]
[null,"23..6 x 31.4","600 x 800"]
[null,"23.6 x 39.3","600 x 1000"]

{"sheet":"support","index":8,"n_rows":99,"n_cols":7,"rows_kept":99,"cut":false,"hidden":true,"merged":[]}
["This sheet has support data for the forms.  Do not delete, alter, or rename this sheet !!!"]
[]
[]
["Primary Container Type",null,"Dunnage Types",null,"Material",null,"Secondary Container "]
["(n/a)",null,"(n/a)",null,"(n/a)",null,"(n/a)"]
["Manually Handled",null,"Paper",null,"Corrugated Fiberboard",null,"Bulk Container"]
["Bulk Container",null,"Tray",null,"HDPE",null,"Plastic Pallet"]
["Knockdown",null,"Reel",null,"LDPE",null,"Pallet Container"]
["Stackable",null,"Partition",null,"Polyethylene",null,"Palletainer"]
["Stackable/Nestable",null,"Foam",null,"PETG",null,"Wood Pallet"]
["Pallet",null,"Bag",null,"PE Film",null,"Pallet/Cover Combination"]
["Pallet Container",null,"Other",null,"Polypropylene",null,"Other"]
["Palletainer",null,null,null,"Polystyrene"]
["Other",null,null,null,"Polyester"]
[null,null,null,null,"PVC"]
[null,null,null,null,"Styrene"]
[null,null,null,null,"Vinyl"]
[null,null,null,null,"Wood"]
[null,null,null,null,"Microcellular Foam"]
[null,null,null,null,"Other"]
[]
[]
[]
["Primary Expendibles",null,"Expendible Materials",null,"Securing Method",null,"Container Menu"]
["(n/a)",null,"(n/a)",null,"(n/a)"]
["Carton",null,"Corrugated",null,"Seat Belts",null,"***** North American Sizes **************"]
["Bulk Container",null,"Paperboard",null,"Stretch Wrap",null,"9 x 9 x 4  (Exp only)"]
["Full Telescoping Carton",null,"Corrugated Fiberboard",null,"Banding",null,"9 x 9 x 6 (Exp only)"]
["HSC",null,"Wood",null,"Other",null,"120804HSC 12 x 8 x 4"]
["RSC",null,"Other",null,null,null,"121504HSC 12 x 15 x 4"]
["Pallet",null,null,null,null,null,"121508HSC 12 x 15 x 7.5"]
["Palletainer",null,null,null,null,null,"241508HSC 24 x 15 x 4"]
["Pallet Container",null,null,null,null,null,"241508HSC 24 x 15 x 7.5"]
["Other",null,null,null,null,null,"241511HSC 24 x 15 x 11"]
[null,null,null,null,"Material for Securing",null,"241515HSC 24 x 15 x 14.5"]
[null,null,null,null,"(n/a)",null,"252308HSC 24 x 22.5 x 7.5"]
[null,null,null,null,"PE",null,"242311HSC 24 x 22.5 x 11"]
[null,null,null,null,"PP",null,"242315HSC 24 x 22.5 x 14.5"]
[null,null,null,null,"Polyester",null,"120804RSC 12 x 8 x 4"]
[null,null,null,null,"Other",null,"121504RSC 12 x 15 x 4"]
[null,null,null,null,null,null,"121508RSC 12 x 15 x 7.5"]
[null,null,null,null,null,null,"241508RSC 24 x 15 x 4"]
[null,null,null,null,null,null,"241508RSC 24 x 15 x 7.5"]
[null,null,null,null,null,null,"241511RSC 24 x 15 x 11"]
[null,null,null,null,null,null,"241515RSC 24 x 15 x 14.5"]
[null,null,null,null,null,null,"252308RSC 24 x 22.5 x 7.5"]
[null,null,null,null,null,null,"242311RSC 24 x 22.5 x 11"]
[null,null,null,null,null,null,"242315RSC 24 x 22.5 x 14.5"]
[null,null,null,null,null,null,"D120804 12 x 8 x 4"]
[null,null,null,null,null,null,"D121504 12 x 15 x 4"]
[null,null,null,null,null,null,"D121508 12 x 15 x 7.5"]
[null,null,null,null,null,null,"D241508 24 x 15 x 4"]
[null,null,null,null,null,null,"D241508 24 x 15 x 7.5"]
[null,null,null,null,null,null,"D241511 24 x 15 x 11"]
[null,null,null,null,null,null,"D241515 24 x 15 x 14.5"]
[null,null,null,null,null,null,"D252308 24 x 22.5 x 7.5"]
[null,null,null,null,null,null,"D242311 24 x 22.5 x 11"]
[null,null,null,null,null,null,"D242315 24 x 22.5 x 14.5"]
[null,null,null,null,null,null,"KC303225 30 x 32 x 25 bulk"]
[null,null,null,null,null,null,"KC303234 30 x 32 x 34 bulk"]
[null,null,null,null,null,null,"KC454825 45 x 48 x 25 bulk"]
[null,null,null,null,null,null,"KC454834 45 x 48 x 34 bulk"]
[null,null,null,null,null,null,"***** Metric Sizes *************************"]
[null,null,null,null,null,null,"300 x 200 x 150"]
[null,null,null,null,null,null,"300 x 200 x 200"]
[null,null,null,null,null,null,"400 x 300 x 150"]
[null,null,null,null,null,null,"400 x 300 x 200"]
[null,null,null,null,null,null,"600 x 400 x 200"]
[null,null,null,null,null,null,"600 x 400 x 300"]
[null,null,null,null,null,null,"***** Special Containers *******************"]
[null,null,null,null,null,null,"NonStandard (describe in ADDITIONAL COMMENTS)"]
[null,null,null,null,null,null,"Specialized (describe in ADDITIONAL COMMENTS)"]
[]
["DO NOT CHANGE ANYTHING  BELOW THIS LINE (for Special Requirements form)"]
[false,"Part Cleanliness is an Issue",null,null,null,null,{"$f":"IF(A75,B75&\" / \",\"\")","v":""}]
[false,"Bags or Disposable Liners are Required",null,null,null,null,{"$f":"IF(A76,B76&\" / \",\"\")","v":""}]
[false,"Surface Finish is Critical",null,null,null,null,""]
[false,"VCI Paper or Dessicant is Required",null,null,null,null,""]
[false,"Part Separation is Required",null,null,null,null,""]
[true,"Part Movement Needs to be Restricted",null,null,null,null,"Part Movement Needs to be Restricted / "]
[false,"A Returnable Container is Required",null,null,null,null,""]
[false,"Specialized Dunnage is Required",null,null,null,null,""]
[false,"Individual Containers Must Have Lids",null,null,null,null,""]
[false,"Part Orientation is Critical (see add'l comments below)",null,null,null,null,""]
[false,"Ergonomic Weight Limit is LESS THAN the 35 Pound General Guideline (see add'l comments  below)",null,null,null,null,""]
[false,"Load Must be Secured with Stretch Wrap",null,null,null,null,""]
[false,"Load Must be Secured with Banding",null,null,null,null,""]
[false,"Attach Drawing or Sketch",null,null,null,null,""]
[false,"Part Requires ESD Protection",null,null,null,null,""]
[]
[]
[]
[]
["pw: coe"]
[]
["DO NOT CHANGE ANYTHING  BELOW THIS LINE (for Expendable/Returnable notes)"]
[true,"EXPENDABLE PACK REQUESTED: provide INFO for Expendable packaging and PRICES for BOTH Expendable and Returnable Pack Options",null,null,null,null,{"$f":"IF(A97,B97&\" / \",\"\")","v":"EXPENDABLE PACK REQUESTED: provide INFO for Expendable packaging and PRICES for BOTH Expendable and Returnable Pack Options / "}]
[false,"RETURNABLE PACK REQUESTED: provide INFO and PRICING for BOTH the Returnable and Expendable pack options",null,null,null,null,{"$f":"IF(A98,B98&\" / \",\"\")","v":""}]
["(this message uses a74)","NOTE: Funding Must be In Place to Support Returnable Containers",null,null,null,null,{"$f":"IF(A98,B99,\"\")","v":""}]